[Event "Titled Tuesday Blitz August 22 Late 2023"]
[White "Erzhanov, Arman"]
[Black "Sargsyan, Shant"]
[WhiteFideId "4138821"]
[BlackFideId "13306766"]
[WhiteElo "2581"]
[BlackElo "2921"]
[Result "1/2-1/2"]
[Round "4"]
[TimeControl "180+1"]
[Date "2023.08.22"]
[WhiteClock "0:00:18"]
[BlackClock "0:00:04"]
[Board "41"]

1. e4 {[%clk 0:02:59]}  c6 {[%clk 0:03:00]} 2. d4 {[%clk 0:02:58]}  d5 {[%clk 0:03:00]} 3. exd5 {[%clk 0:02:59]}  cxd5 {[%clk 0:03:00]} 4. Bd3 {[%clk 0:02:59]}  Nf6 {[%clk 0:03:00]} 5. h3 {[%clk 0:02:59]}  Nc6 {[%clk 0:02:59]} 6. c3 {[%clk 0:02:59]}  e5 {[%clk 0:02:59]} 7. dxe5 {[%clk 0:02:59]}  Nxe5 {[%clk 0:02:59]} 8. Nf3 {[%clk 0:03:00]}  Nxd3+ {[%clk 0:03:00]} 9. Qxd3 {[%clk 0:03:01]}  Bd6 {[%clk 0:03:01]} 10. O-O {[%clk 0:03:00]}  O-O {[%clk 0:03:01]} 11. Bg5 {[%clk 0:03:01]}  h6 {[%clk 0:03:01]} 12. Bh4 {[%clk 0:03:01]}  g5 {[%clk 0:02:57]} 13. Bg3 {[%clk 0:03:01]}  Bxg3 {[%clk 0:02:56]} 14. fxg3 {[%clk 0:03:02]}  Ne4 {[%clk 0:02:57]} 15. Nd4 {[%clk 0:03:02]}  Qb6 {[%clk 0:02:53]} 16. Nd2 {[%clk 0:02:54]}  f5 {[%clk 0:02:50]} 17. Nxe4 {[%clk 0:02:53]}  dxe4 {[%clk 0:02:46]} 18. Qc4+ {[%clk 0:02:53]}  Rf7 {[%clk 0:02:27]} 19. g4 {[%clk 0:02:43]}  f4 {[%clk 0:02:25]} 20. Rae1 {[%clk 0:02:43]}  Qg6 {[%clk 0:02:19]} 21. g3 {[%clk 0:02:42]}  f3 {[%clk 0:02:07]} 22. Qd5 {[%clk 0:02:34]}  Bd7 {[%clk 0:01:17]} 23. Rxe4 {[%clk 0:02:26]}  Bc6 {[%clk 0:01:17]} 24. Nxc6 {[%clk 0:02:22]}  bxc6 {[%clk 0:01:18]} 25. Qc4 {[%clk 0:02:17]}  Kg7 {[%clk 0:01:05]} 26. Qe6 {[%clk 0:02:02]}  Qxe6 {[%clk 0:00:47]} 27. Rxe6 {[%clk 0:02:03]}  Rd8 {[%clk 0:00:48]} 28. Rf2 {[%clk 0:01:47]}  Rd1+ {[%clk 0:00:45]} 29. Kh2 {[%clk 0:01:47]}  Rd3 {[%clk 0:00:20]} 30. h4 {[%clk 0:01:38]}  c5 {[%clk 0:00:18]} 31. Re5 {[%clk 0:01:28]}  c4 {[%clk 0:00:08]} 32. hxg5 {[%clk 0:01:27]}  hxg5 {[%clk 0:00:08]} 33. Rxg5+ {[%clk 0:01:28]}  Kh6 {[%clk 0:00:09]} 34. Rf5 {[%clk 0:01:27]}  Rxf5 {[%clk 0:00:08]} 35. gxf5 {[%clk 0:01:28]}  Kg5 {[%clk 0:00:09]} 36. f6 {[%clk 0:01:25]}  Kxf6 {[%clk 0:00:03]} 37. g4 {[%clk 0:01:25]}  Ke5 {[%clk 0:00:03]} 38. Kg3 {[%clk 0:01:26]}  Ke4 {[%clk 0:00:04]} 39. g5 {[%clk 0:01:26]}  a5 {[%clk 0:00:02]} 40. Rh2 {[%clk 0:01:23]}  Ke3 {[%clk 0:00:01]} 41. Rf2 {[%clk 0:01:20]}  Ke4 {[%clk 0:00:02]} 42. g6 {[%clk 0:01:20]}  a4 {[%clk 0:00:02]} 43. Rh2 {[%clk 0:01:15]}  Ke3 {[%clk 0:00:01]} 44. Rh7 {[%clk 0:01:12]}  Rd1 {[%clk 0:00:01]} 45. Re7+ {[%clk 0:01:12]}  Kd3 {[%clk 0:00:01]} 46. Kxf3 {[%clk 0:01:12]}  Rf1+ {[%clk 0:00:01]} 47. Kg2 {[%clk 0:01:11]}  Rf6 {[%clk 0:00:01]} 48. g7 {[%clk 0:01:11]}  Rg6+ {[%clk 0:00:01]} 49. Kf3 {[%clk 0:01:11]}  Kc2 {[%clk 0:00:02]} 50. Rb7 {[%clk 0:01:11]}  a3 {[%clk 0:00:03]} 51. bxa3 {[%clk 0:01:11]}  Kxc3 {[%clk 0:00:04]} 52. Kf4 {[%clk 0:01:12]}  Kd2 {[%clk 0:00:02]} 53. Kf5 {[%clk 0:01:12]}  Rg1 {[%clk 0:00:03]} 54. Kf6 {[%clk 0:01:12]}  c3 {[%clk 0:00:03]} 55. Rc7 {[%clk 0:01:12]}  c2 {[%clk 0:00:03]} 56. Kf7 {[%clk 0:01:13]}  Rf1+ {[%clk 0:00:03]} 57. Ke8 {[%clk 0:01:13]}  Rg1 {[%clk 0:00:04]} 58. Kf8 {[%clk 0:01:13]}  Rf1+ {[%clk 0:00:04]} 59. Ke7 {[%clk 0:01:00]}  Rg1 {[%clk 0:00:03]} 60. Kf6 {[%clk 0:00:59]}  Rf1+ {[%clk 0:00:04]} 61. Ke7 {[%clk 0:00:53]}  Rg1 {[%clk 0:00:04]} 62. Kf8 {[%clk 0:00:52]}  Rf1+ {[%clk 0:00:05]} 63. Ke8 {[%clk 0:00:45]}  Re1+ {[%clk 0:00:05]} 64. Kf8 {[%clk 0:00:18]}  Rf1+ {[%clk 0:00:04]} 1/2-1/2


[Site "https://www.chess.com"]

[Event "Titled Tuesday Blitz August 22 Late 2023"]
[White "Makarian, Rudik"]
[Black "Dragomirescu, Robin-Alexandru"]
[WhiteFideId "44105681"]
[BlackFideId "1213849"]
[WhiteElo "2917"]
[BlackElo "2577"]
[Result "1-0"]
[Round "4"]
[TimeControl "180+1"]
[Date "2023.08.22"]
[WhiteClock "0:01:31"]
[BlackClock "0:00:20"]
[Board "42"]

1. d4 {[%clk 0:03:00]}  Nf6 {[%clk 0:02:57]} 2. c4 {[%clk 0:03:00]}  e6 {[%clk 0:02:55]} 3. Nf3 {[%clk 0:03:00]}  b6 {[%clk 0:02:53]} 4. g3 {[%clk 0:03:00]}  Ba6 {[%clk 0:02:54]} 5. b3 {[%clk 0:03:00]}  Bb4+ {[%clk 0:02:54]} 6. Bd2 {[%clk 0:03:01]}  Be7 {[%clk 0:02:53]} 7. Bg2 {[%clk 0:03:01]}  d5 {[%clk 0:02:38]} 8. O-O {[%clk 0:02:59]}  O-O {[%clk 0:02:32]} 9. Nc3 {[%clk 0:02:58]}  Nbd7 {[%clk 0:02:24]} 10. Bf4 {[%clk 0:02:55]}  Bb7 {[%clk 0:02:03]} 11. cxd5 {[%clk 0:02:55]}  exd5 {[%clk 0:02:01]} 12. Rc1 {[%clk 0:02:55]}  c6 {[%clk 0:02:01]} 13. h4 {[%clk 0:02:40]}  Re8 {[%clk 0:02:01]} 14. Qc2 {[%clk 0:02:39]}  Bf8 {[%clk 0:01:55]} 15. Rfd1 {[%clk 0:02:36]}  h6 {[%clk 0:01:50]} 16. e3 {[%clk 0:02:31]}  Nh5 {[%clk 0:01:49]} 17. Bh3 {[%clk 0:02:20]}  Nxf4 {[%clk 0:01:47]} 18. exf4 {[%clk 0:02:21]}  Ba3 {[%clk 0:01:35]} 19. Rb1 {[%clk 0:02:20]}  a5 {[%clk 0:01:36]} 20. Re1 {[%clk 0:02:19]}  Rxe1+ {[%clk 0:01:29]} 21. Rxe1 {[%clk 0:02:19]}  Nf6 {[%clk 0:01:22]} 22. Ne5 {[%clk 0:02:19]}  Bb4 {[%clk 0:01:21]} 23. Re3 {[%clk 0:01:57]}  c5 {[%clk 0:01:21]} 24. Nb5 {[%clk 0:01:55]}  a4 {[%clk 0:01:10]} 25. bxa4 {[%clk 0:01:52]}  c4 {[%clk 0:00:55]} 26. Bg2 {[%clk 0:01:48]}  Bf8 {[%clk 0:00:40]} 27. g4 {[%clk 0:01:40]}  Ne8 {[%clk 0:00:33]} 28. g5 {[%clk 0:01:40]}  Nd6 {[%clk 0:00:24]} 29. gxh6 {[%clk 0:01:32]}  Nxb5 {[%clk 0:00:20]} 30. h7+ {[%clk 0:01:31]} 1-0


[Site "https://www.chess.com"]

[Event "Titled Tuesday Blitz August 22 Late 2023"]
[White "Dominguez Perez, Leinier"]
[Black "Santos Flores, Alberto"]
[WhiteFideId "3503240"]
[BlackFideId "3601234"]
[WhiteElo "2909"]
[BlackElo "2578"]
[Result "1-0"]
[Round "4"]
[TimeControl "180+1"]
[Date "2023.08.22"]
[WhiteClock "0:00:21"]
[BlackClock "0:00:02"]
[Board "43"]

1. e4 {[%clk 0:03:00]}  e6 {[%clk 0:02:57]} 2. d4 {[%clk 0:03:00]}  d5 {[%clk 0:02:58]} 3. Nc3 {[%clk 0:03:01]}  Nf6 {[%clk 0:02:58]} 4. e5 {[%clk 0:03:01]}  Nfd7 {[%clk 0:02:57]} 5. Nce2 {[%clk 0:03:01]}  c5 {[%clk 0:02:54]} 6. c3 {[%clk 0:03:02]}  Nc6 {[%clk 0:02:49]} 7. Nf3 {[%clk 0:03:02]}  cxd4 {[%clk 0:02:48]} 8. cxd4 {[%clk 0:03:02]}  f6 {[%clk 0:02:49]} 9. Nf4 {[%clk 0:03:01]}  fxe5 {[%clk 0:02:44]} 10. Nxe6 {[%clk 0:03:01]}  Qb6 {[%clk 0:02:33]} 11. Be2 {[%clk 0:02:14]}  Bb4+ {[%clk 0:02:27]} 12. Bd2 {[%clk 0:02:13]}  Bxd2+ {[%clk 0:02:27]} 13. Qxd2 {[%clk 0:02:12]}  Nxd4 {[%clk 0:01:47]} 14. Nfxd4 {[%clk 0:02:06]}  exd4 {[%clk 0:01:47]} 15. Nxg7+ {[%clk 0:01:59]}  Kf7 {[%clk 0:01:44]} 16. Nf5 {[%clk 0:01:56]}  Nf6 {[%clk 0:01:38]} 17. Nxd4 {[%clk 0:01:48]}  Bd7 {[%clk 0:01:26]} 18. O-O {[%clk 0:01:45]}  Rhg8 {[%clk 0:01:24]} 19. Bf3 {[%clk 0:01:36]}  Qd6 {[%clk 0:01:21]} 20. Rfe1 {[%clk 0:01:31]}  Rg7 {[%clk 0:01:09]} 21. Re2 {[%clk 0:01:26]}  Kg8 {[%clk 0:01:06]} 22. Rae1 {[%clk 0:01:25]}  Kh8 {[%clk 0:01:05]} 23. g3 {[%clk 0:01:20]}  Rf8 {[%clk 0:01:03]} 24. a3 {[%clk 0:01:04]}  Ng4 {[%clk 0:00:49]} 25. Bxg4 {[%clk 0:00:40]}  Bxg4 {[%clk 0:00:50]} 26. Ne6 {[%clk 0:00:39]}  Bxe6 {[%clk 0:00:41]} 27. Rxe6 {[%clk 0:00:38]}  Qc5 {[%clk 0:00:41]} 28. b4 {[%clk 0:00:32]}  Qc4 {[%clk 0:00:36]} 29. Re8 {[%clk 0:00:32]}  Rxe8 {[%clk 0:00:28]} 30. Rxe8+ {[%clk 0:00:31]}  Rg8 {[%clk 0:00:29]} 31. Re7 {[%clk 0:00:28]}  Rg7 {[%clk 0:00:10]} 32. Qh6 {[%clk 0:00:28]}  Qc3 {[%clk 0:00:08]} 33. Qxg7+ {[%clk 0:00:24]}  Qxg7 {[%clk 0:00:08]} 34. Rxg7 {[%clk 0:00:24]}  Kxg7 {[%clk 0:00:08]} 35. f4 {[%clk 0:00:25]}  Kf6 {[%clk 0:00:09]} 36. g4 {[%clk 0:00:25]}  h5 {[%clk 0:00:07]} 37. gxh5 {[%clk 0:00:22]}  Kf5 {[%clk 0:00:07]} 38. Kf2 {[%clk 0:00:22]}  d4 {[%clk 0:00:02]} 39. Ke2 {[%clk 0:00:21]} 1-0


[Site "https://www.chess.com"]

[Event "Titled Tuesday Blitz August 22 Late 2023"]
[White "Przybylski, Wojciech"]
[Black "Bartel, Mateusz"]
[WhiteFideId "1117599"]
[BlackFideId "1112635"]
[WhiteElo "2566"]
[BlackElo "2849"]
[Result "1-0"]
[Round "4"]
[TimeControl "180+1"]
[Date "2023.08.22"]
[WhiteClock "0:00:20"]
[BlackClock "0:00:00"]
[Board "48"]

1. d4 {[%clk 0:03:00]}  Nf6 {[%clk 0:01:38]} 2. g3 {[%clk 0:02:59]}  d5 {[%clk 0:01:29]} 3. Bg2 {[%clk 0:02:58]}  b5 {[%clk 0:01:29]} 4. Nf3 {[%clk 0:02:57]}  e6 {[%clk 0:01:27]} 5. O-O {[%clk 0:02:56]}  Bb7 {[%clk 0:01:26]} 6. a4 {[%clk 0:02:55]}  b4 {[%clk 0:01:26]} 7. Nbd2 {[%clk 0:02:47]}  Be7 {[%clk 0:01:24]} 8. Nb3 {[%clk 0:02:46]}  a5 {[%clk 0:01:23]} 9. Ne5 {[%clk 0:02:43]}  Nbd7 {[%clk 0:01:22]} 10. Nd3 {[%clk 0:02:42]}  O-O {[%clk 0:01:20]} 11. Bf4 {[%clk 0:02:41]}  Ne4 {[%clk 0:01:19]} 12. f3 {[%clk 0:02:38]}  Nef6 {[%clk 0:01:16]} 13. Re1 {[%clk 0:02:35]}  Qc8 {[%clk 0:01:08]} 14. Be3 {[%clk 0:02:31]}  Ne8 {[%clk 0:01:03]} 15. Rc1 {[%clk 0:02:29]}  Nd6 {[%clk 0:01:04]} 16. Ndc5 {[%clk 0:02:25]}  Nc4 {[%clk 0:01:05]} 17. Bf2 {[%clk 0:02:17]}  Nxb2 {[%clk 0:01:05]} 18. Qd2 {[%clk 0:02:17]}  Nc4 {[%clk 0:01:05]} 19. Qf4 {[%clk 0:02:16]}  Nxc5 {[%clk 0:00:58]} 20. Nxc5 {[%clk 0:02:15]}  Bxc5 {[%clk 0:00:58]} 21. dxc5 {[%clk 0:02:14]}  e5 {[%clk 0:00:58]} 22. Qh4 {[%clk 0:02:10]}  Qd8 {[%clk 0:00:56]} 23. Qh5 {[%clk 0:02:07]}  f6 {[%clk 0:00:53]} 24. Bh3 {[%clk 0:01:56]}  Qe8 {[%clk 0:00:52]} 25. Qh4 {[%clk 0:01:54]}  Bc8 {[%clk 0:00:50]} 26. Bg2 {[%clk 0:01:52]}  Qxa4 {[%clk 0:00:48]} 27. e4 {[%clk 0:01:38]}  d4 {[%clk 0:00:48]} 28. Bf1 {[%clk 0:01:32]}  Be6 {[%clk 0:00:48]} 29. f4 {[%clk 0:01:31]}  Qc6 {[%clk 0:00:48]} 30. f5 {[%clk 0:01:23]}  Bf7 {[%clk 0:00:47]} 31. g4 {[%clk 0:01:22]}  a4 {[%clk 0:00:41]} 32. g5 {[%clk 0:01:05]}  a3 {[%clk 0:00:41]} 33. g6 {[%clk 0:00:58]}  hxg6 {[%clk 0:00:41]} 34. fxg6 {[%clk 0:00:58]}  Bxg6 {[%clk 0:00:42]} 35. Bxc4+ {[%clk 0:00:57]}  Bf7 {[%clk 0:00:42]} 36. Bd3 {[%clk 0:00:39]}  a2 {[%clk 0:00:41]} 37. Kh1 {[%clk 0:00:31]}  Be6 {[%clk 0:00:09]} 38. Rg1 {[%clk 0:00:29]}  Rf7 {[%clk 0:00:10]} 39. Ra1 {[%clk 0:00:24]}  Qxc5 {[%clk 0:00:10]} 40. Be1 {[%clk 0:00:23]}  b3 {[%clk 0:00:09]} 41. cxb3 {[%clk 0:00:21]}  Bxb3 {[%clk 0:00:09]} 42. Bd2 {[%clk 0:00:20]}  Bc4 {[%clk 0:00:00]} 43. Rgc1 {[%clk 0:00:20]} 1-0


[Site "https://www.chess.com"]

[Event "Titled Tuesday Blitz August 22 Late 2023"]
[White "Lenderman, Aleksandr"]
[Black "Souleidis, Georgios"]
[WhiteFideId "2021285"]
[BlackFideId "4206827"]
[WhiteElo "2844"]
[BlackElo "2565"]
[Result "1-0"]
[Round "4"]
[TimeControl "180+1"]
[Date "2023.08.22"]
[WhiteClock "0:02:00"]
[BlackClock "0:00:00"]
[Board "49"]

1. Nf3 {[%clk 0:03:00]}  Nf6 {[%clk 0:02:58]} 2. b3 {[%clk 0:03:00]}  d5 {[%clk 0:02:57]} 3. Bb2 {[%clk 0:03:00]}  Bf5 {[%clk 0:02:57]} 4. Nh4 {[%clk 0:02:56]}  Bc8 {[%clk 0:02:46]} 5. e3 {[%clk 0:02:53]}  g6 {[%clk 0:02:38]} 6. c4 {[%clk 0:02:50]}  c6 {[%clk 0:02:35]} 7. cxd5 {[%clk 0:02:43]}  cxd5 {[%clk 0:02:35]} 8. Bb5+ {[%clk 0:02:43]}  Nc6 {[%clk 0:02:35]} 9. Nf3 {[%clk 0:02:40]}  Bg7 {[%clk 0:02:34]} 10. Ne5 {[%clk 0:02:41]}  Qb6 {[%clk 0:02:09]} 11. Bxc6+ {[%clk 0:02:35]}  bxc6 {[%clk 0:02:09]} 12. O-O {[%clk 0:02:33]}  O-O {[%clk 0:02:08]} 13. Nc3 {[%clk 0:02:34]}  Ba6 {[%clk 0:02:03]} 14. d3 {[%clk 0:02:32]}  c5 {[%clk 0:01:54]} 15. Rc1 {[%clk 0:02:27]}  Rac8 {[%clk 0:01:51]} 16. Na4 {[%clk 0:02:27]}  Qd6 {[%clk 0:01:36]} 17. Nf3 {[%clk 0:02:23]}  Bb5 {[%clk 0:01:33]} 18. Be5 {[%clk 0:02:20]}  Qa6 {[%clk 0:01:22]} 19. Nxc5 {[%clk 0:02:17]}  Rxc5 {[%clk 0:01:12]} 20. Rxc5 {[%clk 0:02:16]}  Bxd3 {[%clk 0:01:13]} 21. Re1 {[%clk 0:02:13]}  Be4 {[%clk 0:01:10]} 22. Qe2 {[%clk 0:02:05]}  Bd3 {[%clk 0:01:03]} 23. Qb2 {[%clk 0:02:04]}  Rd8 {[%clk 0:00:00]} 24. Nd4 {[%clk 0:02:00]} 1-0


[Site "https://www.chess.com"]

[Event "Titled Tuesday Blitz August 22 Late 2023"]
[White "Boor, Carl"]
[Black "Klukin, Kirill"]
[WhiteFideId "2017008"]
[BlackFideId "24199273"]
[WhiteElo "2563"]
[BlackElo "2823"]
[Result "0-1"]
[Round "4"]
[TimeControl "180+1"]
[Date "2023.08.22"]
[WhiteClock "0:00:04"]
[BlackClock "0:00:14"]
[Board "50"]

1. d4 {[%clk 0:03:00]}  Nf6 {[%clk 0:02:58]} 2. c4 {[%clk 0:02:59]}  Nc6 {[%clk 0:02:57]} 3. Nf3 {[%clk 0:02:58]}  e6 {[%clk 0:02:57]} 4. a3 {[%clk 0:02:57]}  d6 {[%clk 0:02:57]} 5. g3 {[%clk 0:02:56]}  g6 {[%clk 0:02:58]} 6. Bg2 {[%clk 0:02:56]}  Bg7 {[%clk 0:02:58]} 7. O-O {[%clk 0:02:56]}  O-O {[%clk 0:02:59]} 8. Nc3 {[%clk 0:02:55]}  e5 {[%clk 0:02:59]} 9. h3 {[%clk 0:02:50]}  Bf5 {[%clk 0:02:52]} 10. d5 {[%clk 0:02:41]}  Ne7 {[%clk 0:02:48]} 11. Nd2 {[%clk 0:02:39]}  c6 {[%clk 0:02:31]} 12. e4 {[%clk 0:02:04]}  Bd7 {[%clk 0:02:31]} 13. dxc6 {[%clk 0:01:47]}  bxc6 {[%clk 0:02:24]} 14. Re1 {[%clk 0:01:45]}  Be6 {[%clk 0:02:24]} 15. Qe2 {[%clk 0:01:29]}  Qd7 {[%clk 0:02:24]} 16. Kh2 {[%clk 0:01:28]}  Rfd8 {[%clk 0:02:23]} 17. Nf1 {[%clk 0:01:25]}  Rab8 {[%clk 0:01:55]} 18. Ne3 {[%clk 0:01:21]}  c5 {[%clk 0:01:55]} 19. Ned5 {[%clk 0:01:06]}  Nc6 {[%clk 0:01:33]} 20. Bg5 {[%clk 0:01:02]}  Nd4 {[%clk 0:01:33]} 21. Qd3 {[%clk 0:00:53]}  Bxd5 {[%clk 0:01:29]} 22. Nxd5 {[%clk 0:00:40]}  Qe6 {[%clk 0:01:09]} 23. b4 {[%clk 0:00:35]}  a6 {[%clk 0:00:59]} 24. Rab1 {[%clk 0:00:33]}  Rdc8 {[%clk 0:00:44]} 25. Be3 {[%clk 0:00:22]}  Nxd5 {[%clk 0:00:41]} 26. exd5 {[%clk 0:00:18]}  Qd7 {[%clk 0:00:41]} 27. bxc5 {[%clk 0:00:17]}  dxc5 {[%clk 0:00:34]} 28. Bxd4 {[%clk 0:00:15]}  exd4 {[%clk 0:00:30]} 29. h4 {[%clk 0:00:15]}  Qd6 {[%clk 0:00:27]} 30. Bh3 {[%clk 0:00:15]}  Rd8 {[%clk 0:00:27]} 31. Rxb8 {[%clk 0:00:14]}  Rxb8 {[%clk 0:00:28]} 32. Qe2 {[%clk 0:00:13]}  Bf6 {[%clk 0:00:26]} 33. Qf3 {[%clk 0:00:13]}  Bxh4 {[%clk 0:00:25]} 34. Re4 {[%clk 0:00:12]}  Bg5 {[%clk 0:00:23]} 35. Rg4 {[%clk 0:00:11]}  h6 {[%clk 0:00:21]} 36. Re4 {[%clk 0:00:11]}  Kg7 {[%clk 0:00:21]} 37. Kg2 {[%clk 0:00:11]}  Bf6 {[%clk 0:00:20]} 38. Rf4 {[%clk 0:00:10]}  Rb2 {[%clk 0:00:19]} 39. Qd3 {[%clk 0:00:10]}  Bg5 {[%clk 0:00:17]} 40. Rf3 {[%clk 0:00:10]}  Qe5 {[%clk 0:00:16]} 41. Qd1 {[%clk 0:00:08]}  h5 {[%clk 0:00:12]} 42. Qa4 {[%clk 0:00:07]}  Qd6 {[%clk 0:00:03]} 43. Qd1 {[%clk 0:00:06]}  Rb7 {[%clk 0:00:03]} 44. Rd3 {[%clk 0:00:05]}  Re7 {[%clk 0:00:03]} 45. Qf3 {[%clk 0:00:05]}  Bf6 {[%clk 0:00:03]} 46. Rd2 {[%clk 0:00:05]}  Qe5 {[%clk 0:00:04]} 47. Rb2 {[%clk 0:00:04]}  h4 {[%clk 0:00:04]} 48. Rb6 {[%clk 0:00:03]}  hxg3 {[%clk 0:00:04]} 49. Qxg3 {[%clk 0:00:03]}  Qxg3+ {[%clk 0:00:04]} 50. Kxg3 {[%clk 0:00:03]}  Be5+ {[%clk 0:00:04]} 51. Kf3 {[%clk 0:00:03]}  Re8 {[%clk 0:00:02]} 52. d6 {[%clk 0:00:04]}  Rd8 {[%clk 0:00:03]} 53. d7 {[%clk 0:00:04]}  Bf6 {[%clk 0:00:03]} 54. Rb7 {[%clk 0:00:04]}  Be7 {[%clk 0:00:04]} 55. Ke4 {[%clk 0:00:04]}  a5 {[%clk 0:00:04]} 56. Kd3 {[%clk 0:00:05]}  f5 {[%clk 0:00:05]} 57. f3 {[%clk 0:00:04]}  Kf6 {[%clk 0:00:05]} 58. Rb6+ {[%clk 0:00:04]}  Kf7 {[%clk 0:00:06]} 59. Rb7 {[%clk 0:00:04]}  Ke6 {[%clk 0:00:06]} 60. f4 {[%clk 0:00:04]}  Rxd7 {[%clk 0:00:06]} 61. Rxd7 {[%clk 0:00:04]}  Kxd7 {[%clk 0:00:07]} 62. Bg2 {[%clk 0:00:04]}  Ke6 {[%clk 0:00:07]} 63. Bd5+ {[%clk 0:00:05]}  Kf6 {[%clk 0:00:08]} 64. Bc6 {[%clk 0:00:05]}  Bd6 {[%clk 0:00:08]} 65. Ke2 {[%clk 0:00:05]}  Bxf4 {[%clk 0:00:08]} 66. Kf3 {[%clk 0:00:05]}  Bc1 {[%clk 0:00:09]} 67. a4 {[%clk 0:00:05]}  g5 {[%clk 0:00:09]} 68. Bd7 {[%clk 0:00:05]}  Ke5 {[%clk 0:00:10]} 69. Ke2 {[%clk 0:00:06]}  g4 {[%clk 0:00:10]} 70. Bc6 {[%clk 0:00:06]}  Be3 {[%clk 0:00:11]} 71. Kd3 {[%clk 0:00:06]}  Kf4 {[%clk 0:00:11]} 72. Bd7 {[%clk 0:00:06]}  Kg5 {[%clk 0:00:11]} 73. Bc8 {[%clk 0:00:06]}  f4 {[%clk 0:00:12]} 74. Bb7 {[%clk 0:00:06]}  f3 {[%clk 0:00:12]} 75. Bc6 {[%clk 0:00:06]}  Kh4 {[%clk 0:00:13]} 76. Bd7 {[%clk 0:00:06]}  Kg3 {[%clk 0:00:13]} 77. Bc6 {[%clk 0:00:06]}  Kf2 {[%clk 0:00:14]} 78. Bd7 {[%clk 0:00:04]}  g3 {[%clk 0:00:14]} 0-1


[Site "https://www.chess.com"]

[Event "Titled Tuesday Blitz August 22 Late 2023"]
[White "brm72"]
[Black "Hambleton, Aman"]
[BlackFideId "2606577"]
[WhiteElo "2562"]
[BlackElo "2797"]
[Result "0-1"]
[Round "4"]
[TimeControl "180+1"]
[Date "2023.08.22"]
[WhiteClock "0:00:08"]
[BlackClock "0:01:29"]
[Board "52"]

1. d4 {[%clk 0:03:00]}  e5 {[%clk 0:02:58]} 2. dxe5 {[%clk 0:03:00]}  Nc6 {[%clk 0:02:57]} 3. Nf3 {[%clk 0:03:00]}  Qe7 {[%clk 0:02:57]} 4. Bf4 {[%clk 0:02:55]}  Qb4+ {[%clk 0:02:57]} 5. Bd2 {[%clk 0:02:48]}  Qxb2 {[%clk 0:02:57]} 6. Nc3 {[%clk 0:02:48]}  Bb4 {[%clk 0:02:57]} 7. Rb1 {[%clk 0:02:48]}  Qxc3 {[%clk 0:02:58]} 8. Bxc3 {[%clk 0:02:46]}  Bxc3+ {[%clk 0:02:59]} 9. Nd2 {[%clk 0:02:45]}  Nxe5 {[%clk 0:02:59]} 10. e3 {[%clk 0:02:44]}  Nf6 {[%clk 0:02:59]} 11. Bd3 {[%clk 0:02:35]}  O-O {[%clk 0:03:00]} 12. O-O {[%clk 0:02:34]}  d5 {[%clk 0:03:00]} 13. h3 {[%clk 0:02:28]}  b6 {[%clk 0:02:58]} 14. Nf3 {[%clk 0:02:23]}  Nxf3+ {[%clk 0:02:58]} 15. Qxf3 {[%clk 0:02:23]}  Be5 {[%clk 0:02:59]} 16. c4 {[%clk 0:02:20]}  Be6 {[%clk 0:02:59]} 17. Rfc1 {[%clk 0:02:18]}  Bd6 {[%clk 0:02:46]} 18. a4 {[%clk 0:02:15]}  a5 {[%clk 0:02:43]} 19. cxd5 {[%clk 0:02:12]}  Bxd5 {[%clk 0:02:44]} 20. e4 {[%clk 0:02:11]}  Bb7 {[%clk 0:02:44]} 21. Qf5 {[%clk 0:02:09]}  Rae8 {[%clk 0:02:40]} 22. Re1 {[%clk 0:02:07]}  Re5 {[%clk 0:02:38]} 23. Qf3 {[%clk 0:02:02]}  Rfe8 {[%clk 0:02:38]} 24. Re2 {[%clk 0:01:45]}  Nxe4 {[%clk 0:02:18]} 25. Rbe1 {[%clk 0:01:37]}  Nc5 {[%clk 0:02:00]} 26. Rxe5 {[%clk 0:01:26]}  Rxe5 {[%clk 0:02:01]} 27. Qd1 {[%clk 0:00:20]}  Nxd3 {[%clk 0:01:56]} 28. Rxe5 {[%clk 0:00:17]}  Nxe5 {[%clk 0:01:57]} 29. f4 {[%clk 0:00:13]}  Nd7 {[%clk 0:01:37]} 30. g3 {[%clk 0:00:08]}  Bc6 {[%clk 0:01:29]} 0-1


[Site "https://www.chess.com"]

[Event "Titled Tuesday Blitz August 22 Late 2023"]
[White "Ilkhomi, Jaloliddin"]
[Black "Beerdsen, Thomas"]
[WhiteFideId "14700948"]
[BlackFideId "1030108"]
[WhiteElo "2559"]
[BlackElo "2796"]
[Result "1-0"]
[Round "4"]
[TimeControl "180+1"]
[Date "2023.08.22"]
[WhiteClock "0:00:40"]
[BlackClock "0:01:24"]
[Board "53"]

1. Nf3 {[%clk 0:03:00]}  g5 {[%clk 0:02:57]} 2. Nxg5 {[%clk 0:02:52]}  e5 {[%clk 0:02:56]} 3. d4 {[%clk 0:02:47]}  h6 {[%clk 0:02:57]} 4. Nf3 {[%clk 0:02:45]}  exd4 {[%clk 0:02:56]} 5. Qxd4 {[%clk 0:02:45]}  Nf6 {[%clk 0:02:56]} 6. Bf4 {[%clk 0:02:39]}  Nc6 {[%clk 0:02:52]} 7. Qe3+ {[%clk 0:02:38]}  Be7 {[%clk 0:02:51]} 8. Nc3 {[%clk 0:02:34]}  d6 {[%clk 0:02:50]} 9. Nd4 {[%clk 0:02:30]}  Nxd4 {[%clk 0:02:48]} 10. Qxd4 {[%clk 0:02:30]}  Be6 {[%clk 0:02:49]} 11. e4 {[%clk 0:02:21]}  Rg8 {[%clk 0:02:37]} 12. O-O-O {[%clk 0:02:15]}  Nd7 {[%clk 0:02:31]} 13. Nd5 {[%clk 0:02:04]}  Bg5 {[%clk 0:02:14]} 14. Bxg5 {[%clk 0:02:00]}  hxg5 {[%clk 0:02:11]} 15. Bc4 {[%clk 0:01:57]}  a6 {[%clk 0:02:08]} 16. Ne3 {[%clk 0:01:54]}  Nc5 {[%clk 0:02:04]} 17. Bxe6 {[%clk 0:01:51]}  Nxe6 {[%clk 0:02:05]} 18. Qc4 {[%clk 0:01:43]}  Qd7 {[%clk 0:01:57]} 19. Nd5 {[%clk 0:01:41]}  Rg6 {[%clk 0:01:57]} 20. h4 {[%clk 0:01:37]}  g4 {[%clk 0:01:55]} 21. h5 {[%clk 0:01:34]}  Rh6 {[%clk 0:01:56]} 22. Rh4 {[%clk 0:01:32]}  b5 {[%clk 0:01:54]} 23. Qc3 {[%clk 0:01:28]}  b4 {[%clk 0:01:38]} 24. Qe3 {[%clk 0:01:14]}  Qd8 {[%clk 0:01:31]} 25. Qxh6 {[%clk 0:01:05]}  Qxh4 {[%clk 0:01:31]} 26. Qh8+ {[%clk 0:01:01]}  Kd7 {[%clk 0:01:31]} 27. Qxa8 {[%clk 0:01:01]}  Qxf2 {[%clk 0:01:32]} 28. Qxa6 {[%clk 0:00:58]}  Qxg2 {[%clk 0:01:31]} 29. Qb5+ {[%clk 0:00:54]}  Kd8 {[%clk 0:01:31]} 30. Nf6 {[%clk 0:00:50]}  Ke7 {[%clk 0:01:32]} 31. Rf1 {[%clk 0:00:43]}  Nd4 {[%clk 0:01:24]} 32. Qe8# {[%clk 0:00:40]} 1-0


[Site "https://www.chess.com"]